[Event "Titled Tuesday Blitz March 15 Late 2022"]
[White "Jeet, Jain"]
[Black "Jarocka, Liwia"]
[WhiteFideId "5073022"]
[BlackFideId "21807558"]
[WhiteElo "2085"]
[BlackElo "1896"]
[Result "1-0"]
[Round "07"]
[TimeControl "180+1"]
[Date "2022.03.16"]
[WhiteClock "0:00:10"]
[BlackClock "0:00:08"]

1. d4 {[%clk 0:03:00]}  Nf6 {[%clk 0:02:59]} 2. Nf3 {[%clk 0:03:00]}  c5 {[%clk 0:02:59]} 3. c3 {[%clk 0:02:59]}  cxd4 {[%clk 0:02:59]} 4. Nxd4 {[%clk 0:02:59]}  Nc6 {[%clk 0:02:58]} 5. g3 {[%clk 0:02:59]}  g6 {[%clk 0:02:58]} 6. Bg2 {[%clk 0:02:59]}  Bg7 {[%clk 0:02:58]} 7. O-O {[%clk 0:03:00]}  O-O {[%clk 0:02:58]} 8. e4 {[%clk 0:03:00]}  d6 {[%clk 0:02:56]} 9. Na3 {[%clk 0:03:00]}  Bd7 {[%clk 0:02:55]} 10. h3 {[%clk 0:02:57]}  Rc8 {[%clk 0:02:55]} 11. Be3 {[%clk 0:02:57]}  a6 {[%clk 0:02:54]} 12. Nac2 {[%clk 0:02:53]}  e5 {[%clk 0:02:52]} 13. Ne2 {[%clk 0:02:48]}  Be6 {[%clk 0:02:51]} 14. f4 {[%clk 0:02:41]}  Qd7 {[%clk 0:02:41]} 15. g4 {[%clk 0:02:37]}  exf4 {[%clk 0:02:37]} 16. Nxf4 {[%clk 0:02:36]}  Bc4 {[%clk 0:02:37]} 17. Re1 {[%clk 0:02:32]}  Ne5 {[%clk 0:02:36]} 18. b3 {[%clk 0:02:31]}  Bb5 {[%clk 0:02:36]} 19. c4 {[%clk 0:02:31]}  Bc6 {[%clk 0:02:36]} 20. Nd5 {[%clk 0:02:30]}  Bxd5 {[%clk 0:02:35]} 21. exd5 {[%clk 0:02:29]}  Rfe8 {[%clk 0:02:33]} 22. Nd4 {[%clk 0:02:28]}  h5 {[%clk 0:02:27]} 23. g5 {[%clk 0:02:26]}  Nh7 {[%clk 0:02:26]} 24. a4 {[%clk 0:02:26]}  Qe7 {[%clk 0:02:14]} 25. Qd2 {[%clk 0:02:19]}  Nf8 {[%clk 0:02:08]} 26. Rad1 {[%clk 0:02:06]}  Nfd7 {[%clk 0:02:08]} 27. Bf2 {[%clk 0:02:00]}  Nc5 {[%clk 0:02:07]} 28. Re3 {[%clk 0:01:54]}  Qd7 {[%clk 0:01:56]} 29. Rde1 {[%clk 0:01:53]}  Kh7 {[%clk 0:01:40]} 30. Kh2 {[%clk 0:01:46]}  Kg8 {[%clk 0:01:28]} 31. Qe2 {[%clk 0:01:39]}  Qd8 {[%clk 0:01:26]} 32. Nf3 {[%clk 0:01:26]}  Nxf3+ {[%clk 0:01:20]} 33. Qxf3 {[%clk 0:01:20]}  Be5+ {[%clk 0:01:17]} 34. Bg3 {[%clk 0:01:14]}  Qxg5 {[%clk 0:00:57]} 35. Bxe5 {[%clk 0:01:14]}  Rxe5 {[%clk 0:00:57]} 36. Rxe5 {[%clk 0:01:14]}  dxe5 {[%clk 0:00:58]} 37. a5 {[%clk 0:01:10]}  e4 {[%clk 0:00:53]} 38. Qc3 {[%clk 0:01:04]}  Re8 {[%clk 0:00:47]} 39. b4 {[%clk 0:01:02]}  Qf4+ {[%clk 0:00:44]} 40. Qg3 {[%clk 0:00:56]}  Qxg3+ {[%clk 0:00:36]} 41. Kxg3 {[%clk 0:00:57]}  Nd3 {[%clk 0:00:32]} 42. Rxe4 {[%clk 0:00:57]}  Rxe4 {[%clk 0:00:28]} 43. Bxe4 {[%clk 0:00:58]}  Nxb4 {[%clk 0:00:29]} 44. d6 {[%clk 0:00:59]}  Kf8 {[%clk 0:00:29]} 45. Bxb7 {[%clk 0:00:58]}  Ke8 {[%clk 0:00:29]} 46. c5 {[%clk 0:00:40]}  Kd7 {[%clk 0:00:28]} 47. Kf3 {[%clk 0:00:28]}  Nd3 {[%clk 0:00:28]} 48. Bxa6 {[%clk 0:00:19]}  Nxc5 {[%clk 0:00:27]} 49. Bc4 {[%clk 0:00:17]}  Kxd6 {[%clk 0:00:18]} 50. Bxf7 {[%clk 0:00:16]}  g5 {[%clk 0:00:18]} 51. Bxh5 {[%clk 0:00:17]}  Kc6 {[%clk 0:00:18]} 52. Be8+ {[%clk 0:00:15]}  Kb7 {[%clk 0:00:17]} 53. Bb5 {[%clk 0:00:14]}  Nb3 {[%clk 0:00:16]} 54. a6+ {[%clk 0:00:14]}  Kb6 {[%clk 0:00:15]} 55. Kg4 {[%clk 0:00:14]}  Nd4 {[%clk 0:00:16]} 56. Bc4 {[%clk 0:00:14]}  Nc6 {[%clk 0:00:14]} 57. Kxg5 {[%clk 0:00:13]}  Ne5 {[%clk 0:00:14]} 58. Be2 {[%clk 0:00:12]}  Kc7 {[%clk 0:00:11]} 59. h4 {[%clk 0:00:11]}  Nd7 {[%clk 0:00:09]} 60. h5 {[%clk 0:00:10]}  Nb6 {[%clk 0:00:08]} 61. h6 {[%clk 0:00:10]} 1-0


[Site "https://www.chess.com"]

[Event "Titled Tuesday Blitz March 15 Late 2022"]
[White "Klukin, Kirill"]
[Black "Vine, Elzbieta"]
[WhiteFideId "24199273"]
[BlackFideId "1119320"]
[WhiteElo "2324"]
[BlackElo "1841"]
[Result "1-0"]
[Round "07"]
[TimeControl "180+1"]
[Date "2022.03.16"]
[WhiteClock "0:02:17"]
[BlackClock "0:01:09"]

1. e4 {[%clk 0:02:44]}  c5 {[%clk 0:02:59]} 2. Nf3 {[%clk 0:02:44]}  e6 {[%clk 0:02:57]} 3. c3 {[%clk 0:02:44]}  Nc6 {[%clk 0:02:55]} 4. d4 {[%clk 0:02:44]}  cxd4 {[%clk 0:02:54]} 5. cxd4 {[%clk 0:02:44]}  d5 {[%clk 0:02:53]} 6. e5 {[%clk 0:02:45]}  Nge7 {[%clk 0:02:34]} 7. Nc3 {[%clk 0:02:40]}  Nf5 {[%clk 0:02:32]} 8. g4 {[%clk 0:02:40]}  Nh4 {[%clk 0:02:24]} 9. Be3 {[%clk 0:02:40]}  Nxf3+ {[%clk 0:02:11]} 10. Qxf3 {[%clk 0:02:41]}  Qb6 {[%clk 0:02:08]} 11. Bb5 {[%clk 0:02:38]}  a6 {[%clk 0:02:04]} 12. Bxc6+ {[%clk 0:02:37]}  bxc6 {[%clk 0:02:02]} 13. Qe2 {[%clk 0:02:37]}  Rb8 {[%clk 0:02:00]} 14. b3 {[%clk 0:02:20]}  Bb4 {[%clk 0:01:57]} 15. Rc1 {[%clk 0:02:20]}  O-O {[%clk 0:01:55]} 16. O-O {[%clk 0:02:19]}  Qa5 {[%clk 0:01:47]} 17. Na4 {[%clk 0:02:19]}  c5 {[%clk 0:01:31]} 18. Nxc5 {[%clk 0:02:17]}  Bxc5 {[%clk 0:01:09]} 19. Rxc5 {[%clk 0:02:18]}  Bd7 {[%clk 0:01:09]} 20. Rxa5 {[%clk 0:02:17]} 1-0


[Site "https://www.chess.com"]

[Event "Titled Tuesday Blitz March 15 Late 2022"]
[White "Kucuksari, Kaan"]
[Black "Grischuk, Alexander"]
[WhiteFideId "6380166"]
[BlackFideId "4126025"]
[WhiteElo "2717"]
[BlackElo "3026"]
[Result "0-1"]
[Round "07"]
[TimeControl "180+1"]
[Date "2022.03.15"]
[WhiteClock "0:00:02"]
[BlackClock "0:00:07"]

1. d4 {[%clk 0:03:00]}  e6 {[%clk 0:03:00]} 2. c4 {[%clk 0:02:59]}  b6 {[%clk 0:03:00]} 3. Nf3 {[%clk 0:02:57]}  Bb7 {[%clk 0:02:59]} 4. g3 {[%clk 0:02:56]}  Bb4+ {[%clk 0:02:58]} 5. Bd2 {[%clk 0:02:56]}  Bxf3 {[%clk 0:02:57]} 6. exf3 {[%clk 0:02:57]}  Bxd2+ {[%clk 0:02:57]} 7. Qxd2 {[%clk 0:02:52]}  Ne7 {[%clk 0:02:58]} 8. Bg2 {[%clk 0:02:51]}  c6 {[%clk 0:02:50]} 9. Nc3 {[%clk 0:02:39]}  d5 {[%clk 0:02:50]} 10. h4 {[%clk 0:02:29]}  dxc4 {[%clk 0:02:38]} 11. h5 {[%clk 0:02:29]}  h6 {[%clk 0:02:37]} 12. O-O-O {[%clk 0:02:20]}  Na6 {[%clk 0:02:33]} 13. Kb1 {[%clk 0:02:00]}  Qd7 {[%clk 0:02:25]} 14. Qe2 {[%clk 0:01:42]}  b5 {[%clk 0:02:24]} 15. Qe5 {[%clk 0:01:42]}  O-O {[%clk 0:02:21]} 16. g4 {[%clk 0:01:38]}  Qc7 {[%clk 0:02:07]} 17. Qe2 {[%clk 0:01:26]}  Qf4 {[%clk 0:01:56]} 18. Ne4 {[%clk 0:01:07]}  Rad8 {[%clk 0:01:48]} 19. g5 {[%clk 0:01:02]}  hxg5 {[%clk 0:01:37]} 20. h6 {[%clk 0:01:03]}  g6 {[%clk 0:01:38]} 21. Bh3 {[%clk 0:00:48]}  Nf5 {[%clk 0:01:10]} 22. Bxf5 {[%clk 0:00:48]}  Qxf5 {[%clk 0:00:55]} 23. Ka1 {[%clk 0:00:28]}  Nb4 {[%clk 0:00:55]} 24. Rhg1 {[%clk 0:00:21]}  f6 {[%clk 0:00:55]} 25. Rg4 {[%clk 0:00:15]}  Kh7 {[%clk 0:00:53]} 26. Rdg1 {[%clk 0:00:15]}  Nd3 {[%clk 0:00:39]} 27. Qe3 {[%clk 0:00:10]}  Rd7 {[%clk 0:00:32]} 28. Ng3 {[%clk 0:00:09]}  Qd5 {[%clk 0:00:31]} 29. Ne4 {[%clk 0:00:10]}  e5 {[%clk 0:00:24]} 30. Rxg5 {[%clk 0:00:08]}  fxg5 {[%clk 0:00:21]} 31. Qxg5 {[%clk 0:00:08]}  Qe6 {[%clk 0:00:14]} 32. f4 {[%clk 0:00:07]}  exf4 {[%clk 0:00:12]} 33. Qg2 {[%clk 0:00:06]}  Rf5 {[%clk 0:00:12]} 34. Ng5+ {[%clk 0:00:03]}  Rxg5 {[%clk 0:00:12]} 35. Qxg5 {[%clk 0:00:04]}  Rf7 {[%clk 0:00:12]} 36. Rd1 {[%clk 0:00:02]}  Nxf2 {[%clk 0:00:10]} 37. Rb1 {[%clk 0:00:01]}  Ne4 {[%clk 0:00:10]} 38. Qd8 {[%clk 0:00:02]}  f3 {[%clk 0:00:09]} 39. Qh4 {[%clk 0:00:01]}  f2 {[%clk 0:00:09]} 40. Qh1 {[%clk 0:00:02]}  Ng3 {[%clk 0:00:07]} 41. Qh4 {[%clk 0:00:02]}  f1=Q {[%clk 0:00:07]} 0-1


[Site "https://www.chess.com"]

[Event "Titled Tuesday Blitz March 15 Late 2022"]
[White "Kujawski, Adam"]
[Black "Vusatiuk, Vladimir"]
[WhiteFideId "1100920"]
[BlackFideId "14118610"]
[WhiteElo "2053"]
[BlackElo "2157"]
[Result "1-0"]
[Round "07"]
[TimeControl "180+1"]
[Date "2022.03.16"]
[WhiteClock "0:00:10"]
[BlackClock "0:00:10"]

1. e4 {[%clk 0:02:53]}  c5 {[%clk 0:02:48]} 2. Nf3 {[%clk 0:02:53]}  d6 {[%clk 0:02:48]} 3. d4 {[%clk 0:02:53]}  cxd4 {[%clk 0:02:48]} 4. Nxd4 {[%clk 0:02:54]}  Nf6 {[%clk 0:02:49]} 5. Nc3 {[%clk 0:02:54]}  Nc6 {[%clk 0:02:49]} 6. Bg5 {[%clk 0:02:53]}  Bd7 {[%clk 0:02:49]} 7. Bxf6 {[%clk 0:02:51]}  gxf6 {[%clk 0:02:49]} 8. Qd2 {[%clk 0:02:51]}  h5 {[%clk 0:02:45]} 9. f4 {[%clk 0:02:51]}  Bh6 {[%clk 0:02:13]} 10. Nf5 {[%clk 0:02:50]}  Bxf5 {[%clk 0:02:03]} 11. exf5 {[%clk 0:02:51]}  Qa5 {[%clk 0:01:50]} 12. Nd5 {[%clk 0:02:27]}  Qxd2+ {[%clk 0:01:32]} 13. Kxd2 {[%clk 0:02:28]}  O-O-O {[%clk 0:01:32]} 14. g3 {[%clk 0:02:25]}  e6 {[%clk 0:01:11]} 15. fxe6 {[%clk 0:01:34]}  fxe6 {[%clk 0:01:12]} 16. Bh3 {[%clk 0:01:34]}  f5 {[%clk 0:01:11]} 17. Ne3 {[%clk 0:01:27]}  h4 {[%clk 0:01:05]} 18. c4 {[%clk 0:01:26]}  Bg7 {[%clk 0:00:55]} 19. Rab1 {[%clk 0:01:22]}  Kc7 {[%clk 0:00:48]} 20. b3 {[%clk 0:01:12]}  Nd4 {[%clk 0:00:31]} 21. Nc2 {[%clk 0:01:09]}  Nc6 {[%clk 0:00:09]} 22. Rbe1 {[%clk 0:01:08]}  Rhe8 {[%clk 0:00:08]} 23. Bg2 {[%clk 0:00:55]}  a6 {[%clk 0:00:05]} 24. Rhg1 {[%clk 0:00:48]}  hxg3 {[%clk 0:00:04]} 25. hxg3 {[%clk 0:00:40]}  e5 {[%clk 0:00:05]} 26. Bd5 {[%clk 0:00:39]}  e4 {[%clk 0:00:04]} 27. g4 {[%clk 0:00:36]}  Ne7 {[%clk 0:00:04]} 28. Ne3 {[%clk 0:00:31]}  fxg4 {[%clk 0:00:03]} 29. Rxg4 {[%clk 0:00:29]}  Bh6 {[%clk 0:00:03]} 30. Rh1 {[%clk 0:00:28]}  Bf8 {[%clk 0:00:02]} 31. Rh7 {[%clk 0:00:25]}  Kc8 {[%clk 0:00:02]} 32. Bxe4 {[%clk 0:00:20]}  Nc6 {[%clk 0:00:02]} 33. Bxc6 {[%clk 0:00:16]}  bxc6 {[%clk 0:00:03]} 34. Rg8 {[%clk 0:00:13]}  d5 {[%clk 0:00:03]} 35. Rg6 {[%clk 0:00:03]}  Bb4+ {[%clk 0:00:04]} 36. Kd3 {[%clk 0:00:03]}  Rd6 {[%clk 0:00:02]} 37. Rxd6 {[%clk 0:00:02]}  Bxd6 {[%clk 0:00:03]} 38. cxd5 {[%clk 0:00:03]}  Bxf4 {[%clk 0:00:02]} 39. Nf5 {[%clk 0:00:02]}  cxd5 {[%clk 0:00:02]} 40. Ne7+ {[%clk 0:00:02]}  Kd8 {[%clk 0:00:02]} 41. Nxd5 {[%clk 0:00:03]}  Bd6 {[%clk 0:00:01]} 42. a4 {[%clk 0:00:03]}  Re5 {[%clk 0:00:02]} 43. Kd4 {[%clk 0:00:03]}  Rg5 {[%clk 0:00:03]} 44. Nf6 {[%clk 0:00:02]}  Rf5 {[%clk 0:00:02]} 45. Rd7+ {[%clk 0:00:02]}  Kc8 {[%clk 0:00:03]} 46. Rxd6 {[%clk 0:00:03]}  Rf3 {[%clk 0:00:04]} 47. Kd5 {[%clk 0:00:03]}  Rxb3 {[%clk 0:00:04]} 48. Kc6 {[%clk 0:00:04]}  Rc3+ {[%clk 0:00:04]} 49. Kb6 {[%clk 0:00:03]}  Rc4 {[%clk 0:00:04]} 50. a5 {[%clk 0:00:03]}  Rb4+ {[%clk 0:00:05]} 51. Kxa6 {[%clk 0:00:03]}  Kc7 {[%clk 0:00:06]} 52. Rb6 {[%clk 0:00:04]}  Ra4 {[%clk 0:00:05]} 53. Nd5+ {[%clk 0:00:05]}  Kc8 {[%clk 0:00:06]} 54. Rc6+ {[%clk 0:00:05]}  Kb8 {[%clk 0:00:06]} 55. Rb6+ {[%clk 0:00:06]}  Kc8 {[%clk 0:00:06]} 56. Nc3 {[%clk 0:00:06]}  Ra3 {[%clk 0:00:06]} 57. Nb5 {[%clk 0:00:07]}  Ra1 {[%clk 0:00:07]} 58. Nd6+ {[%clk 0:00:07]}  Kc7 {[%clk 0:00:07]} 59. Nb5+ {[%clk 0:00:07]}  Kc8 {[%clk 0:00:07]} 60. Rh6 {[%clk 0:00:07]}  Rb1 {[%clk 0:00:06]} 61. Kb6 {[%clk 0:00:07]}  Ra1 {[%clk 0:00:07]} 62. a6 {[%clk 0:00:07]}  Kd8 {[%clk 0:00:06]} 63. a7 {[%clk 0:00:07]}  Kc8 {[%clk 0:00:07]} 64. Rh8+ {[%clk 0:00:07]}  Kd7 {[%clk 0:00:08]} 65. a8=Q {[%clk 0:00:08]}  Rxa8 {[%clk 0:00:08]} 66. Rxa8 {[%clk 0:00:08]}  Ke6 {[%clk 0:00:09]} 67. Ra4 {[%clk 0:00:09]}  Kd5 {[%clk 0:00:10]} 68. Na7 {[%clk 0:00:10]} 1-0


[Site "https://www.chess.com"]

[Event "Titled Tuesday Blitz March 15 Late 2022"]
[White "Lashkin, Jegor"]
[Black "Arabidze, Meri"]
[WhiteFideId "13907808"]
[BlackFideId "13604040"]
[WhiteElo "2840"]
[BlackElo "2629"]
[Result "1/2-1/2"]
[Round "07"]
[TimeControl "180+1"]
[Date "2022.03.15"]
[WhiteClock "0:00:06"]
[BlackClock "0:00:12"]

1. d4 {[%clk 0:03:00]}  f5 {[%clk 0:02:59]} 2. g3 {[%clk 0:03:00]}  Nf6 {[%clk 0:02:59]} 3. Bg2 {[%clk 0:03:00]}  e6 {[%clk 0:03:00]} 4. Nf3 {[%clk 0:03:00]}  d5 {[%clk 0:03:00]} 5. O-O {[%clk 0:03:00]}  Bd6 {[%clk 0:03:00]} 6. c4 {[%clk 0:03:00]}  c6 {[%clk 0:03:00]} 7. Qc2 {[%clk 0:02:57]}  O-O {[%clk 0:02:59]} 8. Ne1 {[%clk 0:02:57]}  b6 {[%clk 0:02:58]} 9. Nd3 {[%clk 0:02:56]}  Bb7 {[%clk 0:02:57]} 10. Bf4 {[%clk 0:02:55]}  Be7 {[%clk 0:02:54]} 11. Nd2 {[%clk 0:02:55]}  Nbd7 {[%clk 0:02:52]} 12. Nf3 {[%clk 0:02:50]}  Ne4 {[%clk 0:02:51]} 13. Nfe5 {[%clk 0:02:41]}  Rc8 {[%clk 0:02:48]} 14. Nxd7 {[%clk 0:02:36]}  Qxd7 {[%clk 0:02:47]} 15. Ne5 {[%clk 0:02:36]}  Qe8 {[%clk 0:02:44]} 16. Qa4 {[%clk 0:02:11]}  a6 {[%clk 0:02:35]} 17. Qb3 {[%clk 0:02:05]}  b5 {[%clk 0:02:32]} 18. c5 {[%clk 0:02:03]}  a5 {[%clk 0:02:28]} 19. Nd3 {[%clk 0:02:00]}  g5 {[%clk 0:02:21]} 20. Bc1 {[%clk 0:01:57]}  Qh5 {[%clk 0:02:03]} 21. f3 {[%clk 0:01:52]}  Nf6 {[%clk 0:02:03]} 22. Qc2 {[%clk 0:01:40]}  Nd7 {[%clk 0:01:56]} 23. b4 {[%clk 0:01:33]}  a4 {[%clk 0:01:53]} 24. Bb2 {[%clk 0:01:31]}  Bf6 {[%clk 0:01:52]} 25. Rae1 {[%clk 0:01:30]}  Rce8 {[%clk 0:01:42]} 26. e4 {[%clk 0:01:18]}  Bg7 {[%clk 0:01:32]} 27. exd5 {[%clk 0:01:08]}  exd5 {[%clk 0:01:31]} 28. Ne5 {[%clk 0:01:08]}  Nxe5 {[%clk 0:01:18]} 29. dxe5 {[%clk 0:01:09]}  Bc8 {[%clk 0:01:17]} 30. f4 {[%clk 0:01:08]}  g4 {[%clk 0:01:14]} 31. Bd4 {[%clk 0:01:07]}  Be6 {[%clk 0:01:13]} 32. Kf2 {[%clk 0:01:03]}  Qg6 {[%clk 0:01:11]} 33. h3 {[%clk 0:00:54]}  h5 {[%clk 0:01:10]} 34. hxg4 {[%clk 0:00:52]}  hxg4 {[%clk 0:01:11]} 35. Rh1 {[%clk 0:00:52]}  Kf7 {[%clk 0:01:08]} 36. Bf1 {[%clk 0:00:34]}  Rh8 {[%clk 0:01:06]} 37. Bd3 {[%clk 0:00:35]}  Rh5 {[%clk 0:00:54]} 38. Rxh5 {[%clk 0:00:33]}  Qxh5 {[%clk 0:00:55]} 39. Ke3 {[%clk 0:00:33]}  Rh8 {[%clk 0:00:52]} 40. Qf2 {[%clk 0:00:18]}  Qg6 {[%clk 0:00:46]} 41. Kd2 {[%clk 0:00:17]}  Rh5 {[%clk 0:00:40]} 42. Kc3 {[%clk 0:00:17]}  Qh6 {[%clk 0:00:39]} 43. Qc2 {[%clk 0:00:14]}  Kg6 {[%clk 0:00:32]} 44. Qe2 {[%clk 0:00:13]}  Kf7 {[%clk 0:00:32]} 45. Qc2 {[%clk 0:00:13]}  Qh7 {[%clk 0:00:26]} 46. Re2 {[%clk 0:00:13]}  Rh3 {[%clk 0:00:26]} 47. Rg2 {[%clk 0:00:12]}  Qh5 {[%clk 0:00:25]} 48. Kb2 {[%clk 0:00:11]}  Bh6 {[%clk 0:00:23]} 49. Qf2 {[%clk 0:00:09]}  Rh1 {[%clk 0:00:17]} 50. Qc2 {[%clk 0:00:08]}  Rh3 {[%clk 0:00:14]} 51. Bc3 {[%clk 0:00:06]}  Rh1 {[%clk 0:00:12]} 52. Bd4 {[%clk 0:00:06]}  Rh3 {[%clk 0:00:12]} 1/2-1/2


[Site "https://www.chess.com"]

[Event "Titled Tuesday Blitz March 15 Late 2022"]
[White "Le Goff, Ronan"]
[Black "Rosenberg, Evan S"]
[WhiteFideId "612073"]
[BlackFideId "2019299"]
[WhiteElo "2276"]
[BlackElo "2293"]
[Result "1-0"]
[Round "07"]
[TimeControl "180+1"]
[Date "2022.03.16"]
[WhiteClock "0:01:21"]
[BlackClock "0:00:02"]

1. d4 {[%clk 0:02:57]}  Nf6 {[%clk 0:02:59]} 2. Nc3 {[%clk 0:02:55]}  d5 {[%clk 0:02:59]} 3. Bf4 {[%clk 0:02:54]}  a6 {[%clk 0:02:59]} 4. e4 {[%clk 0:02:51]}  e6 {[%clk 0:02:41]} 5. h4 {[%clk 0:02:43]}  c5 {[%clk 0:02:36]} 6. exd5 {[%clk 0:02:41]}  cxd4 {[%clk 0:02:30]} 7. Qxd4 {[%clk 0:02:41]}  Nc6 {[%clk 0:02:28]} 8. Qe3 {[%clk 0:02:41]}  Nxd5 {[%clk 0:02:23]} 9. Nxd5 {[%clk 0:02:40]}  Qxd5 {[%clk 0:02:17]} 10. Rd1 {[%clk 0:02:39]}  Qxa2 {[%clk 0:02:01]} 11. Nf3 {[%clk 0:02:34]}  Qxb2 {[%clk 0:01:46]} 12. Bd3 {[%clk 0:02:33]}  Bb4+ {[%clk 0:01:36]} 13. Kf1 {[%clk 0:02:25]}  Bd7 {[%clk 0:01:18]} 14. h5 {[%clk 0:02:17]}  h6 {[%clk 0:01:13]} 15. Qb6 {[%clk 0:02:11]}  Bc3 {[%clk 0:01:03]} 16. Qc7 {[%clk 0:02:03]}  Rc8 {[%clk 0:00:59]} 17. Qd6 {[%clk 0:02:03]}  Bb4 {[%clk 0:00:49]} 18. Be5 {[%clk 0:01:46]}  Nxe5 {[%clk 0:00:36]} 19. Qxe5 {[%clk 0:01:39]}  Qxe5 {[%clk 0:00:35]} 20. Nxe5 {[%clk 0:01:40]}  Bb5 {[%clk 0:00:33]} 21. Bxb5+ {[%clk 0:01:35]}  axb5 {[%clk 0:00:34]} 22. Rb1 {[%clk 0:01:34]}  Bd6 {[%clk 0:00:31]} 23. Rxb5 {[%clk 0:01:34]}  Bxe5 {[%clk 0:00:30]} 24. Rxe5 {[%clk 0:01:34]}  Rxc2 {[%clk 0:00:31]} 25. Rh4 {[%clk 0:01:31]}  Ke7 {[%clk 0:00:15]} 26. Rb4 {[%clk 0:01:30]}  Rb8 {[%clk 0:00:15]} 27. Reb5 {[%clk 0:01:30]}  Rc7 {[%clk 0:00:14]} 28. Rg4 {[%clk 0:01:30]}  Kf8 {[%clk 0:00:13]} 29. g3 {[%clk 0:01:29]}  b6 {[%clk 0:00:12]} 30. Kg2 {[%clk 0:01:28]}  Rc5 {[%clk 0:00:12]} 31. Rb3 {[%clk 0:01:25]}  Rxh5 {[%clk 0:00:12]} 32. Rgb4 {[%clk 0:01:26]}  b5 {[%clk 0:00:12]} 33. Rf3 {[%clk 0:01:26]}  Rc5 {[%clk 0:00:09]} 34. Rbf4 {[%clk 0:01:25]}  f6 {[%clk 0:00:09]} 35. Re4 {[%clk 0:01:24]}  e5 {[%clk 0:00:09]} 36. Rb4 {[%clk 0:01:25]}  Rc4 {[%clk 0:00:08]} 37. Rb2 {[%clk 0:01:26]}  b4 {[%clk 0:00:09]} 38. Rfb3 {[%clk 0:01:26]}  Ke7 {[%clk 0:00:09]} 39. Rb1 {[%clk 0:01:22]}  Kd6 {[%clk 0:00:06]} 40. Rd3+ {[%clk 0:01:23]}  Rd4 {[%clk 0:00:06]} 41. Rdb3 {[%clk 0:01:23]}  Kc5 {[%clk 0:00:06]} 42. Ra1 {[%clk 0:01:23]}  Kc4 {[%clk 0:00:05]} 43. Rbb1 {[%clk 0:01:23]}  b3 {[%clk 0:00:04]} 44. Ra7 {[%clk 0:01:24]}  b2 {[%clk 0:00:03]} 45. Rc7+ {[%clk 0:01:23]}  Kd3 {[%clk 0:00:03]} 46. Kf3 {[%clk 0:01:23]}  e4+ {[%clk 0:00:03]} 47. Kg2 {[%clk 0:01:23]}  f5 {[%clk 0:00:03]} 48. Kf1 {[%clk 0:01:23]}  g5 {[%clk 0:00:02]} 49. Rd1# {[%clk 0:01:21]} 1-0


[Site "https://www.chess.com"]

[Event "Titled Tuesday Blitz March 15 Late 2022"]
[White "Lehtosaari, Mauri"]
[Black "Sarkar, Justin"]
[WhiteFideId "501999"]
[BlackFideId "2010011"]
[WhiteElo "2458"]
[BlackElo "2038"]
[Result "1-0"]
[Round "07"]
[TimeControl "180+1"]
[Date "2022.03.16"]
[WhiteClock "0:00:11"]
[BlackClock "0:00:00"]

1. Nf3 {[%clk 0:03:00]}  Nf6 {[%clk 0:02:46]} 2. g3 {[%clk 0:03:01]}  d5 {[%clk 0:02:44]} 3. Bg2 {[%clk 0:03:01]}  Nbd7 {[%clk 0:02:25]} 4. d4 {[%clk 0:03:00]}  e6 {[%clk 0:02:14]} 5. O-O {[%clk 0:02:59]}  Be7 {[%clk 0:02:12]} 6. b3 {[%clk 0:02:59]}  O-O {[%clk 0:02:10]} 7. Bb2 {[%clk 0:02:59]}  c6 {[%clk 0:02:07]} 8. Nbd2 {[%clk 0:02:54]}  b6 {[%clk 0:02:05]} 9. Ne5 {[%clk 0:02:52]}  Nxe5 {[%clk 0:02:00]} 10. dxe5 {[%clk 0:02:52]}  Nd7 {[%clk 0:02:00]} 11. e4 {[%clk 0:02:52]}  Ba6 {[%clk 0:01:46]} 12. Re1 {[%clk 0:02:51]}  Rc8 {[%clk 0:01:45]} 13. Rc1 {[%clk 0:02:42]}  Nc5 {[%clk 0:01:41]} 14. Qf3 {[%clk 0:02:05]}  Bg5 {[%clk 0:00:47]} 15. Rcd1 {[%clk 0:02:04]}  Bxd2 {[%clk 0:00:40]} 16. Rxd2 {[%clk 0:02:04]}  Nxe4 {[%clk 0:00:39]} 17. Rdd1 {[%clk 0:01:12]}  Qe7 {[%clk 0:00:38]} 18. Qe3 {[%clk 0:01:02]}  Qc5 {[%clk 0:00:23]} 19. Bxe4 {[%clk 0:00:49]}  Qxe3 {[%clk 0:00:23]} 20. Rxe3 {[%clk 0:00:29]}  dxe4 {[%clk 0:00:23]} 21. Rxe4 {[%clk 0:00:29]}  c5 {[%clk 0:00:08]} 22. Ree1 {[%clk 0:00:20]}  Rfd8 {[%clk 0:00:08]} 23. f3 {[%clk 0:00:18]}  Kf8 {[%clk 0:00:07]} 24. Kf2 {[%clk 0:00:17]}  Ke8 {[%clk 0:00:07]} 25. c4 {[%clk 0:00:16]}  Rxd1 {[%clk 0:00:06]} 26. Rxd1 {[%clk 0:00:16]}  Rd8 {[%clk 0:00:07]} 27. Rxd8+ {[%clk 0:00:17]}  Kxd8 {[%clk 0:00:08]} 28. Ke3 {[%clk 0:00:17]}  Ke7 {[%clk 0:00:07]} 29. h4 {[%clk 0:00:14]}  Bb7 {[%clk 0:00:07]} 30. Kf4 {[%clk 0:00:13]}  Bc6 {[%clk 0:00:06]} 31. Bc3 {[%clk 0:00:14]}  Bb7 {[%clk 0:00:06]} 32. a3 {[%clk 0:00:14]}  Bc6 {[%clk 0:00:05]} 33. Ke3 {[%clk 0:00:14]}  Bb7 {[%clk 0:00:05]} 34. g4 {[%clk 0:00:15]}  Bc6 {[%clk 0:00:04]} 35. Bd2 {[%clk 0:00:15]}  a5 {[%clk 0:00:04]} 36. Kf2 {[%clk 0:00:14]}  Bb7 {[%clk 0:00:04]} 37. Bg5+ {[%clk 0:00:13]}  Ke8 {[%clk 0:00:03]} 38. Be3 {[%clk 0:00:11]}  Bc6 {[%clk 0:00:03]} 39. Ke2 {[%clk 0:00:11]}  Kd7 {[%clk 0:00:03]} 40. f4 {[%clk 0:00:12]}  Kc7 {[%clk 0:00:02]} 41. Kd2 {[%clk 0:00:12]}  Be4 {[%clk 0:00:01]} 42. Kc3 {[%clk 0:00:12]}  Kc6 {[%clk 0:00:01]} 43. b4 {[%clk 0:00:12]}  axb4+ {[%clk 0:00:01]} 44. axb4 {[%clk 0:00:13]}  cxb4+ {[%clk 0:00:01]} 45. Kxb4 {[%clk 0:00:14]}  g6 {[%clk 0:00:00]} 46. Ka4 {[%clk 0:00:11]} 1-0


[Site "https://www.chess.com"]

[Event "Titled Tuesday Blitz March 15 Late 2022"]
[White "Lysyj, Igor"]
[Black "Yang, Kaiqi"]
[WhiteFideId "4150120"]
[BlackFideId "8604398"]
[WhiteElo "2611"]
[BlackElo "2373"]
[Result "1-0"]
[Round "07"]
[TimeControl "180+1"]
[Date "2022.03.15"]
[WhiteClock "0:01:15"]
[BlackClock "0:00:03"]

1. d4 {[%clk 0:03:00]}  e6 {[%clk 0:03:00]} 2. c4 {[%clk 0:02:59]}  f5 {[%clk 0:03:00]} 3. Nf3 {[%clk 0:02:58]}  Nf6 {[%clk 0:03:00]} 4. g3 {[%clk 0:02:57]}  d5 {[%clk 0:03:01]} 5. Bf4 {[%clk 0:02:57]}  Bd6 {[%clk 0:02:59]} 6. e3 {[%clk 0:02:56]}  c6 {[%clk 0:02:57]} 7. Nc3 {[%clk 0:02:55]}  O-O {[%clk 0:02:56]} 8. Qc2 {[%clk 0:02:55]}  Ne4 {[%clk 0:02:54]} 9. Bg2 {[%clk 0:02:50]}  Be7 {[%clk 0:02:30]} 10. h4 {[%clk 0:02:48]}  Nd7 {[%clk 0:02:23]} 11. Nxe4 {[%clk 0:02:35]}  fxe4 {[%clk 0:02:20]} 12. Ng5 {[%clk 0:02:35]}  Bb4+ {[%clk 0:01:54]} 13. Ke2 {[%clk 0:02:30]}  Nf6 {[%clk 0:01:50]} 14. f3 {[%clk 0:02:13]}  h6 {[%clk 0:01:35]} 15. fxe4 {[%clk 0:02:12]}  hxg5 {[%clk 0:01:25]} 16. hxg5 {[%clk 0:02:12]}  Nxe4 {[%clk 0:00:26]} 17. Bxe4 {[%clk 0:02:12]}  dxe4 {[%clk 0:00:25]} 18. Qxe4 {[%clk 0:02:12]}  Rf7 {[%clk 0:00:17]} 19. Qh7+ {[%clk 0:01:36]}  Kf8 {[%clk 0:00:17]} 20. g6 {[%clk 0:01:36]}  Rxf4 {[%clk 0:00:10]} 21. Qh8+ {[%clk 0:01:30]}  Ke7 {[%clk 0:00:10]} 22. Qxg7+ {[%clk 0:01:30]}  Kd6 {[%clk 0:00:10]} 23. Qe5+ {[%clk 0:01:26]}  Kd7 {[%clk 0:00:07]} 24. Rh7+ {[%clk 0:01:25]}  Be7 {[%clk 0:00:07]} 25. gxf4 {[%clk 0:01:25]}  b6 {[%clk 0:00:06]} 26. Rh8 {[%clk 0:01:14]}  Qc7 {[%clk 0:00:03]} 27. Qxc7+ {[%clk 0:01:15]}  Kxc7 {[%clk 0:00:03]} 28. g7 {[%clk 0:01:15]} 1-0


[Site "https://www.chess.com"]